[Event "Hungarian Rapid-ch 2022"]
[Site "Ajka"]
[Date "2022.07.16"]
[Round "9.8"]
[White "Prohaszka, Peter"]
[Black "Krstulovic, Alex"]
[Result "1-0"]
[ECO "D85"]
[WhiteElo "2570"]
[BlackElo "2413"]
[Annotator "ChessBase"]
[PlyCount "73"]
[EventDate "2022.07.15"]
[EventType "swiss"]
[EventCountry "HUN"]
[SourceTitle "playchess.com"]
[Source "ChessBase"]
[SourceQuality "1"]
[TimeControl "900+10"]

1. d4 {[%emt 0:00:16]} Nf6 {[%emt 0:00:12]} 2. c4 {[%emt 0:00:01]} g6 {[%emt 0:00:02]} 3. Nc3 {[%emt 0:00:01]} d5 {[%emt 0:00:02]} 4. cxd5 {[%emt 0:00:01]} Nxd5 {[%emt 0:00:01]} 5. e4 {[%emt 0:00:01]} Nxc3 {[%emt 0:00:01]} 6. bxc3 {[%emt 0:00:01]} Bg7 {[%emt 0:00:02]} 7. Nf3 {[%emt 0:00:15]} c5 {[%emt 0:00:01]} 8. Bb5+ {[%emt 0:00:02]} Nd7 {[%emt 0:00:16]} 9. O-O {[%emt 0:00:34]} O-O {[%emt 0:00:16]} 10. Rb1 {[%emt 0:02:08]} Nf6 {[%emt 0:00:22]} 11. Re1 {[%emt 0:00:57]} a6 {[%emt 0:01:01]} 12. Bf1 {[%emt 0:00:33]} b6 {[%emt 0:00:04]} 13. d5 {[%emt 0:00:58]} Bg4 {[%emt 0:05:59]} 14. c4 {[%emt 0:00:59]} e5 {[%emt 0:00:21]} 15. Qb3 {[%emt 0:00:57]} Bxf3 {[%emt 0:00:10]} 16. Qxf3 {[%emt 0:00:01]} Ne8 {[%emt 0:00:09]} 17. Qb3 {[%emt 0:03:02]} Rb8 {[%emt 0:00:07]} 18. Qa4 {[%emt 0:00:26]} Qc8 {[%emt 0:00:24]} 19. Qc6 {[%emt 0:03:39]} Qxc6 {[%emt 0:01:19]} 20. dxc6 {[%emt 0:00:01]} Nc7 {[%emt 0:00:01]} 21. Rd1 {[%emt 0:00:44]} Na8 {[%emt 0:02:30]} 22. Rd7 {[%emt 0:01:59]} Rbd8 {[%emt 0:03:21]} 23. g3 {[%emt 0:00:23]} Rxd7 {[%emt 0:02:03]} 24. cxd7 {[%emt 0:00:01]} f6 {[%emt 0:00:03]} 25. Bh3 {[%emt 0:00:08]} Kf7 {[%emt 0:00:01]} 26. f4 {[%emt 0:00:03]} Ke7 {[%emt 0:00:12]} 27. Be3 {[%emt 0:00:45]} f5 {[%emt 0:00:19]} 28. exf5 {[%emt 0:00:15]} gxf5 {[%emt 0:00:06]} 29. Rd1 {[%emt 0:00:34]} exf4 {[%emt 0:00:09]} 30. gxf4 {[%emt 0:00:09]} Nc7 {[%emt 0:00:09]} 31. Bxf5 {[%emt 0:00:06]} Rd8 {[%emt 0:00:16]} 32. Bf2 {[%emt 0:00:12]} Bf6 {[%emt 0:00:13]} 33. Kg2 {[%emt 0:00:10]} h6 {[%emt 0:00:02]} 34. Kf3 {[%emt 0:00:01]} Kf7 {[%emt 0:00:09]} 35. Rd6 {[%emt 0:00:13]} b5 {[%emt 0:00:06]} 36. Rc6 {[%emt 0:00:10]} bxc4 {[%emt 0:00:12]} 37. Rxc7 {[%emt 0:00:06]} 1-0

[Event "Hungarian Rapid-ch 2022"]
[Site "Ajka"]
[Date "2022.07.16"]
[Round "9.9"]
[White "Korpa, Bence"]
[Black "Kaczur, Florian"]
[Result "1/2-1/2"]
[ECO "A45"]
[WhiteElo "2537"]
[BlackElo "2482"]
[Annotator "ChessBase"]
[PlyCount "23"]
[EventDate "2022.07.15"]
[EventType "swiss"]
[EventCountry "HUN"]
[SourceTitle "playchess.com"]
[Source "ChessBase"]
[SourceQuality "1"]
[TimeControl "900+10"]

1. d4 {[%emt 0:00:12]} Nf6 {[%emt 0:00:15]} 2. Nc3 {[%emt 0:00:02]} c5 {[%emt 0:00:12]} 3. d5 {[%emt 0:00:05]} d6 {[%emt 0:00:07]} 4. g3 {[%emt 0:00:05]} e5 {[%emt 0:00:05]} 5. Bg2 {[%emt 0:00:05]} g6 {[%emt 0:00:30]} 6. e4 {[%emt 0:00:04]} Bg7 {[%emt 0:00:05]} 7. Nge2 {[%emt 0:00:03]} a6 {[%emt 0:00:17]} 8. a4 {[%emt 0:00:05]} b6 {[%emt 0:00:05]} 9. O-O {[%emt 0:00:04]} Nbd7 {[%emt 0:00:05]} 10. h3 {[%emt 0:00:04]} h6 {[%emt 0:00:09]} 11. Be3 {[%emt 0:00:04]} O-O {[%emt 0:00:23]} 12. Qd2 {[%emt 0:00:03]} 1/2-1/2

[Event "Hungarian Rapid-ch 2022"]
[Site "Ajka"]
[Date "2022.07.16"]
[Round "9.10"]
[White "Vertetics, Attila"]
[Black "Egresi, Mate"]
[Result "1/2-1/2"]
[ECO "D02"]
[WhiteElo "2465"]
[BlackElo "2376"]
[Annotator "ChessBase"]
[PlyCount "129"]
[EventDate "2022.07.15"]
[EventType "swiss"]
[EventCountry "HUN"]
[SourceTitle "playchess.com"]
[Source "ChessBase"]
[SourceQuality "1"]
[TimeControl "900+10"]

1. d4 {[%emt 0:00:11]} d5 {[%emt 0:00:11]} 2. Nf3 {[%emt 0:00:09]} Nf6 {[%emt 0:00:01]} 3. c4 {[%emt 0:00:02]} e6 {[%emt 0:00:01]} 4. e3 {[%emt 0:00:05]} c5 {[%emt 0:00:13]} 5. cxd5 {[%emt 0:00:05]} Nxd5 {[%emt 0:00:13]} 6. e4 {[%emt 0:00:16]} Nf6 {[%emt 0:00:04]} 7. Nc3 {[%emt 0:00:01]} cxd4 {[%emt 0:00:51]} 8. Qxd4 {[%emt 0:00:02]} Qxd4 {[%emt 0:00:24]} 9. Nxd4 {[%emt 0:00:02]} a6 {[%emt 0:01:52]} 10. f3 {[%emt 0:00:47]} Bc5 {[%emt 0:00:20]} 11. Nb3 {[%emt 0:00:44]} Ba7 {[%emt 0:00:09]} 12. Bf4 {[%emt 0:03:09]} Nc6 {[%emt 0:02:09]} 13. Bd6 {[%emt 0:00:04]} Bb8 {[%emt 0:00:06]} 14. Bc5 {[%emt 0:00:10]} Ba7 {[%emt 0:00:06]} 15. Rc1 {[%emt 0:01:56]} Bxc5 {[%emt 0:00:16]} 16. Nxc5 {[%emt 0:00:01]} Nd7 {[%emt 0:00:03]} 17. N3a4 {[%emt 0:00:25]} Nxc5 {[%emt 0:02:02]} 18. Rxc5 {[%emt 0:00:04]} Bd7 {[%emt 0:04:57]} 19. Nb6 {[%emt 0:00:17]} Rb8 {[%emt 0:00:04]} 20. Kf2 {[%emt 0:02:47]} Ke7 {[%emt 0:00:10]} 21. e5 {[%emt 0:00:56]} Rhd8 {[%emt 0:00:19]} 22. Bd3 {[%emt 0:00:05]} Be8 {[%emt 0:00:14]} 23. Ke3 {[%emt 0:00:11]} Rd4 {[%emt 0:00:40]} 24. a3 {[%emt 0:00:42]} Rbd8 {[%emt 0:00:09]} 25. Be2 {[%emt 0:01:20]} f6 {[%emt 0:00:21]} 26. exf6+ {[%emt 0:00:31]} gxf6 {[%emt 0:00:01]} 27. Rhc1 {[%emt 0:01:28]} Rd2 {[%emt 0:00:32]} 28. Nc4 {[%emt 0:00:12]} R2d5 {[%emt 0:00:10]} 29. Rxd5 {[%emt 0:00:26]} Rxd5 {[%emt 0:00:27]} 30. f4 {[%emt 0:00:37]} Nd4 {[%emt 0:01:26]} 31. Nb6 {[%emt 0:01:06]} Nf5+ {[%emt 0:00:01]} 32. Kf2 {[%emt 0:00:12]} Rd2 {[%emt 0:00:01]} 33. Nc4 {[%emt 0:00:02]} Rd8 {[%emt 0:00:06]} 34. Ne3 {[%emt 0:00:47]} Nd4 {[%emt 0:00:32]} 35. Rc7+ {[%emt 0:00:18]} Rd7 {[%emt 0:00:01]} 36. Rxd7+ {[%emt 0:00:01]} Bxd7 {[%emt 0:00:04]} 37. Bd3 {[%emt 0:00:02]} f5 {[%emt 0:00:18]} 38. h3 {[%emt 0:00:33]} Bb5 {[%emt 0:00:03]} 39. Bb1 {[%emt 0:00:05]} h6 {[%emt 0:00:24]} 40. g4 {[%emt 0:00:03]} Kf6 {[%emt 0:00:04]} 41. h4 {[%emt 0:00:21]} fxg4 {[%emt 0:00:14]} 42. Nxg4+ {[%emt 0:00:01]} Kg7 {[%emt 0:00:00]} 43. Ke3 {[%emt 0:00:04]} Nc6 {[%emt 0:00:11]} 44. Be4 {[%emt 0:00:04]} Ba4 {[%emt 0:00:10]} 45. Ne5 {[%emt 0:00:04]} Nxe5 {[%emt 0:00:10]} 46. fxe5 {[%emt 0:00:01]} b6 {[%emt 0:00:04]} 47. Kd4 {[%emt 0:00:13]} Kf7 {[%emt 0:00:16]} 48. b4 {[%emt 0:00:25]} Ke7 {[%emt 0:00:33]} 49. Bb7 {[%emt 0:00:06]} Bb5 {[%emt 0:00:06]} 50. a4 {[%emt 0:00:02]} Bxa4 {[%emt 0:00:10]} 51. Bxa6 {[%emt 0:00:02]} Bc6 {[%emt 0:00:28]} 52. Bc4 {[%emt 0:00:10]} Bf3 {[%emt 0:00:11]} 53. Ke3 {[%emt 0:00:08]} Bd1 {[%emt 0:00:08]} 54. Bd3 {[%emt 0:00:10]} Kd7 {[%emt 0:00:25]} 55. Kd4 {[%emt 0:00:09]} Bb3 {[%emt 0:00:10]} 56. Be2 {[%emt 0:00:03]} Ke7 {[%emt 0:00:08]} 57. Bc4 {[%emt 0:00:26]} Bd1 {[%emt 0:00:17]} 58. Ke3 {[%emt 0:00:07]} Bc2 {[%emt 0:00:10]} 59. Kf4 {[%emt 0:00:02]} Bd1 {[%emt 0:00:07]} 60. Bf1 {[%emt 0:00:07]} Kf7 {[%emt 0:00:09]} 61. Bh3 {[%emt 0:00:07]} Ke7 {[%emt 0:00:04]} 62. Bg4 {[%emt 0:00:06]} Bc2 {[%emt 0:00:04]} 63. Bf3 {[%emt 0:00:03]} Bg6 {[%emt 0:00:07]} 64. Be4 {[%emt 0:00:30]} Bh5 {[%emt 0:00:07]} 65. Bd3 {[%emt 0:00:02]} 1/2-1/2

[Event "Hungarian Rapid-ch 2022"]
[Site "Ajka"]
[Date "2022.07.16"]
[Round "9.11"]
[White "Margl, Roland"]
[Black "Antal, Gergely"]
[Result "0-1"]
[ECO "A05"]
[WhiteElo "2312"]
[BlackElo "2571"]
[Annotator "ChessBase"]
[PlyCount "48"]
[EventDate "2022.07.15"]
[EventType "swiss"]
[EventCountry "HUN"]
[SourceTitle "playchess.com"]
[Source "ChessBase"]
[SourceQuality "1"]
[TimeControl "900+10"]

1. Nf3 {[%emt 0:00:12]} Nf6 {[%emt 0:00:32]} 2. c4 {[%emt 0:00:01]} g6 {[%emt 0:00:50]} 3. d4 {[%emt 0:00:02]} Bg7 {[%emt 0:00:02]} 4. g3 {[%emt 0:00:01]} c6 {[%emt 0:00:16]} 5. Bg2 {[%emt 0:00:56]} d5 {[%emt 0:00:02]} 6. cxd5 {[%emt 0:00:19]} cxd5 {[%emt 0:00:02]} 7. Nc3 {[%emt 0:00:25]} O-O {[%emt 0:00:01]} 8. O-O {[%emt 0:00:04]} Ne4 {[%emt 0:01:08]} 9. Ne5 {[%emt 0:00:21]} Bf5 {[%emt 0:01:20]} 10. Qb3 {[%emt 0:00:15]} Nc6 {[%emt 0:00:09]} 11. Nxc6 {[%emt 0:01:33]} bxc6 {[%emt 0:00:01]} 12. Nxe4 {[%emt 0:00:02]} dxe4 {[%emt 0:01:23]} 13. Rd1 {[%emt 0:00:03]} Rb8 {[%emt 0:00:45]} 14. Qa4 {[%emt 0:04:11]} Rb5 {[%emt 0:00:39]} 15. b4 {[%emt 0:05:01]} Qb6 {[%emt 0:01:39]} 16. Be3 {[%emt 0:00:39]} Rxb4 {[%emt 0:00:09]} 17. Qc2 {[%emt 0:00:24]} Rb2 {[%emt 0:02:39]} 18. Qa4 {[%emt 0:01:55]} a5 {[%emt 0:02:21]} 19. d5 {[%emt 0:00:18]} Qb5 {[%emt 0:00:01]} 20. Qa3 {[%emt 0:00:38]} cxd5 {[%emt 0:00:30]} 21. Qxe7 {[%emt 0:00:10]} Qc4 {[%emt 0:01:31]} 22. Qd6 {[%emt 0:00:23]} Be6 {[%emt 0:00:41]} 23. Qa3 {[%emt 0:00:48]} Rc2 {[%emt 0:00:46]} 24. Rac1 {[%emt 0:00:17]} Qxa2 {[%emt 0:00:16]} 0-1

[Event "Hungarian Rapid-ch 2022"]
[Site "Ajka"]
[Date "2022.07.16"]
[Round "9.12"]
[White "Straubinger, Daniel"]
[Black "Varga, Zoltan"]
[Result "0-1"]
[ECO "B02"]
[WhiteElo "2349"]
[BlackElo "2401"]
[Annotator "ChessBase"]
[PlyCount "60"]
[EventDate "2022.07.15"]
[EventType "swiss"]
[EventCountry "HUN"]
[SourceTitle "playchess.com"]
[Source "ChessBase"]
[SourceQuality "1"]
[TimeControl "900+10"]

1. e4 {[%emt 0:00:16]} Nf6 {[%emt 0:00:11]} 2. Nc3 {[%emt 0:00:04]} d5 {[%emt 0:00:03]} 3. exd5 {[%emt 0:00:13]} Nxd5 {[%emt 0:00:01]} 4. Nxd5 {[%emt 0:00:39]} Qxd5 {[%emt 0:00:02]} 5. d4 {[%emt 0:00:46]} e5 {[%emt 0:00:30]} 6. dxe5 {[%emt 0:00:17]} Qxd1+ {[%emt 0:00:18]} 7. Kxd1 {[%emt 0:00:02]} Nc6 {[%emt 0:00:01]} 8. Bb5 {[%emt 0:00:24]} Bg4+ {[%emt 0:00:02]} 9. f3 {[%emt 0:00:20]} O-O-O+ {[%emt 0:00:02]} 10. Bd2 {[%emt 0:00:16]} Bd7 {[%emt 0:01:07]} 11. Bxc6 {[%emt 0:02:09]} Bxc6 {[%emt 0:00:02]} 12. Ne2 {[%emt 0:04:26]} Rd5 {[%emt 0:01:30]} 13. Nf4 {[%emt 0:00:28]} Rxe5 {[%emt 0:00:08]} 14. Re1 {[%emt 0:00:24]} Bd6 {[%emt 0:00:01]} 15. h3 {[%emt 0:00:39]} Rg5 {[%emt 0:02:18]} 16. Re2 {[%emt 0:00:03]} Bb5 {[%emt 0:01:27]} 17. Nd3 {[%emt 0:02:05]} Rd5 {[%emt 0:00:03]} 18. Bc3 {[%emt 0:00:53]} f6 {[%emt 0:00:48]} 19. a4 {[%emt 0:01:40]} Bxd3 {[%emt 0:00:34]} 20. cxd3 {[%emt 0:00:07]} Rxd3+ {[%emt 0:00:02]} 21. Kc2 {[%emt 0:00:01]} Rd5 {[%emt 0:00:01]} 22. Rae1 {[%emt 0:00:03]} Kd7 {[%emt 0:00:06]} 23. Re4 {[%emt 0:00:01]} h5 {[%emt 0:00:11]} 24. Bb4 {[%emt 0:00:18]} c5 {[%emt 0:00:17]} 25. Bc3 {[%emt 0:00:03]} b6 {[%emt 0:01:11]} 26. Kb3 {[%emt 0:00:05]} a6 {[%emt 0:00:06]} 27. Kc2 {[%emt 0:00:12]} Rc8 {[%emt 0:00:19]} 28. Bd2 {[%emt 0:00:08]} Re5 {[%emt 0:00:53]} 29. Bf4 {[%emt 0:00:32]} Rxe4 {[%emt 0:00:03]} 30. Rxe4 {[%emt 0:00:01]} f5 {[%emt 0:00:04]} 0-1

[Event "Hungarian Rapid-ch 2022"]
[Site "Ajka"]
[Date "2022.07.16"]
[Round "9.13"]
[White "Mihok, Oliver"]
[Black "Hoang, Thanh Trang"]
[Result "1-0"]
[ECO "C00"]
[WhiteElo "2549"]
[BlackElo "2376"]
[Annotator "ChessBase"]
[PlyCount "51"]
[EventDate "2022.07.15"]
[EventType "swiss"]
[EventCountry "HUN"]
[SourceTitle "playchess.com"]
[Source "ChessBase"]
[SourceQuality "1"]
[TimeControl "900+10"]

1. e4 {[%emt 0:00:12]} e6 {[%emt 0:00:13]} 2. d4 {[%emt 0:00:01]} d5 {[%emt 0:00:03]} 3. Bd3 {[%emt 0:00:02]} dxe4 {[%emt 0:00:27]} 4. Bxe4 {[%emt 0:00:01]} Nf6 {[%emt 0:00:04]} 5. Bf3 {[%emt 0:00:02]} c5 {[%emt 0:00:11]} 6. Ne2 {[%emt 0:00:02]} Nc6 {[%emt 0:00:06]} 7. Be3 {[%emt 0:00:03]} cxd4 {[%emt 0:00:30]} 8. Nxd4 {[%emt 0:00:02]} Ne5 {[%emt 0:00:22]} 9. Nc3 {[%emt 0:00:02]} a6 {[%emt 0:00:59]} 10. Qe2 {[%emt 0:00:05]} Nxf3+ {[%emt 0:00:38]} 11. gxf3 {[%emt 0:00:03]} Qc7 {[%emt 0:02:14]} 12. O-O-O {[%emt 0:00:30]} Bd7 {[%emt 0:00:28]} 13. Rhg1 {[%emt 0:02:03]} O-O-O {[%emt 0:00:50]} 14. f4 {[%emt 0:01:52]} Bb4 {[%emt 0:00:56]} 15. Rd3 {[%emt 0:01:45]} g6 {[%emt 0:01:22]} 16. Rgd1 {[%emt 0:00:51]} Rhe8 {[%emt 0:00:39]} 17. Nf3 {[%emt 0:01:18]} Bc6 {[%emt 0:01:19]} 18. Ne5 {[%emt 0:00:20]} Rxd3 {[%emt 0:00:43]} 19. Qxd3 {[%emt 0:00:16]} Bxc3 {[%emt 0:00:52]} 20. Qxc3 {[%emt 0:00:09]} Nd5 {[%emt 0:00:14]} 21. Qc5 {[%emt 0:00:51]} f6 {[%emt 0:00:25]} 22. Nc4 {[%emt 0:00:45]} Rd8 {[%emt 0:00:21]} 23. Qa7 {[%emt 0:01:28]} Kd7 {[%emt 0:03:46]} 24. Rd2 {[%emt 0:01:42]} Ke8 {[%emt 0:00:18]} 25. Qc5 {[%emt 0:00:44]} Bb5 {[%emt 0:00:23]} 26. Rxd5 {[%emt 0:00:16]} 1-0

[Event "Hungarian Rapid-ch 2022"]
[Site "Ajka"]
[Date "2022.07.16"]
[Round "9.14"]
[White "Horvath, Csaba"]
[Black "Hardicsay, Peter"]
[Result "1-0"]
[ECO "A04"]
[WhiteElo "2506"]
[BlackElo "2199"]
[Annotator "ChessBase"]
[PlyCount "57"]
[EventDate "2022.07.15"]
[EventType "swiss"]
[EventCountry "HUN"]
[SourceTitle "playchess.com"]
[Source "ChessBase"]
[SourceQuality "1"]
[TimeControl "900+10"]

1. Nf3 {[%emt 0:00:13]} c5 {[%emt 0:00:18]} 2. c4 {[%emt 0:00:05]} g6 {[%emt 0:00:03]} 3. e3 {[%emt 0:00:41]} Bg7 {[%emt 0:00:24]} 4. d4 {[%emt 0:00:03]} Nf6 {[%emt 0:00:11]} 5. Nc3 {[%emt 0:00:06]} O-O {[%emt 0:01:12]} 6. Be2 {[%emt 0:00:22]} cxd4 {[%emt 0:00:13]} 7. exd4 {[%emt 0:00:17]} d5 {[%emt 0:00:08]} 8. O-O {[%emt 0:00:06]} Nc6 {[%emt 0:01:02]} 9. h3 {[%emt 0:00:20]} b6 {[%emt 0:01:52]} 10. Ne5 {[%emt 0:01:21]} Bb7 {[%emt 0:00:29]} 11. Bf3 {[%emt 0:00:02]} Rc8 {[%emt 0:02:07]} 12. Re1 {[%emt 0:00:13]} dxc4 {[%emt 0:00:24]} 13. Nxc4 {[%emt 0:00:37]} Nxd4 {[%emt 0:00:40]} 14. Bxb7 {[%emt 0:00:03]} Rxc4 {[%emt 0:00:02]} 15. Ba6 {[%emt 0:02:24]} Rc7 {[%emt 0:00:27]} 16. Bf4 {[%emt 0:00:24]} Rd7 {[%emt 0:00:09]} 17. Qa4 {[%emt 0:00:04]} Nd5 {[%emt 0:00:29]} 18. Nxd5 {[%emt 0:00:35]} Rxd5 {[%emt 0:00:02]} 19. Bf1 {[%emt 0:00:35]} a5 {[%emt 0:00:35]} 20. Rac1 {[%emt 0:00:40]} b5 {[%emt 0:01:35]} 21. Qa3 {[%emt 0:00:27]} e5 {[%emt 0:00:34]} 22. Be3 {[%emt 0:00:17]} Nf5 {[%emt 0:01:23]} 23. Bc5 {[%emt 0:00:42]} b4 {[%emt 0:00:55]} 24. Qa4 {[%emt 0:00:16]} Re8 {[%emt 0:00:16]} 25. Bb6 {[%emt 0:00:10]} Qa8 {[%emt 0:00:41]} 26. Bb5 {[%emt 0:00:16]} Rxb5 {[%emt 0:00:19]} 27. Qxb5 {[%emt 0:00:03]} Nh4 {[%emt 0:00:01]} 28. Qc6 {[%emt 0:00:13]} Bh6 {[%emt 0:00:12]} 29. Qxa8 {[%emt 0:00:18]} 1-0

[Event "Hungarian Rapid-ch 2022"]
[Site "Ajka"]
[Date "2022.07.16"]
[Round "9.15"]
[White "Kantor, Gergely"]
[Black "Kokeny, Gabor"]
[Result "1-0"]
[ECO "D15"]
[WhiteElo "2582"]
[BlackElo "2204"]
[Annotator "ChessBase"]
[PlyCount "58"]
[EventDate "2022.07.15"]
[EventType "swiss"]
[EventCountry "HUN"]
[SourceTitle "playchess.com"]
[Source "ChessBase"]
[SourceQuality "1"]
[TimeControl "900+10"]

1. d4 {[%emt 0:00:11]} d5 {[%emt 0:00:23]} 2. c4 {[%emt 0:00:02]} c6 {[%emt 0:00:16]} 3. Nf3 {[%emt 0:00:02]} Nf6 {[%emt 0:00:02]} 4. Nc3 {[%emt 0:00:03]} dxc4 {[%emt 0:00:16]} 5. e4 {[%emt 0:00:04]} b5 {[%emt 0:00:02]} 6. Be2 {[%emt 0:00:02]} e6 {[%emt 0:00:15]} 7. O-O {[%emt 0:00:04]} Be7 {[%emt 0:01:33]} 8. a4 {[%emt 0:01:13]} b4 {[%emt 0:03:14]} 9. e5 {[%emt 0:00:02]} Nd5 {[%emt 0:00:42]} 10. Ne4 {[%emt 0:00:01]} Ba6 {[%emt 0:00:56]} 11. Bg5 {[%emt 0:00:04]} f6 {[%emt 0:00:20]} 12. Bh4 {[%emt 0:00:48]} Nf4 {[%emt 0:00:16]} 13. Re1 {[%emt 0:00:15]} fxe5 {[%emt 0:02:31]} 14. Bxe7 {[%emt 0:00:16]} Qxe7 {[%emt 0:00:13]} 15. Nxe5 {[%emt 0:00:07]} O-O {[%emt 0:00:28]} 16. Nc5 {[%emt 0:00:21]} Qg5 {[%emt 0:02:09]} 17. Bg4 {[%emt 0:00:06]} h5 {[%emt 0:00:23]} 18. Nxe6 {[%emt 0:00:13]} Qf6 {[%emt 0:02:39]} 19. Nxf8 {[%emt 0:00:11]} hxg4 {[%emt 0:00:34]} 20. Qxg4 {[%emt 0:00:11]} Qxf8 {[%emt 0:00:35]} 21. Re4 {[%emt 0:00:02]} Bc8 {[%emt 0:00:35]} 22. Qxf4 {[%emt 0:00:10]} Qxf4 {[%emt 0:00:02]} 23. Rxf4 {[%emt 0:00:02]} Be6 {[%emt 0:00:01]} 24. Ng6 {[%emt 0:00:14]} Bf7 {[%emt 0:00:29]} 25. Ne5 {[%emt 0:00:58]} Be6 {[%emt 0:00:07]} 26. Rc1 {[%emt 0:00:01]} c3 {[%emt 0:00:06]} 27. bxc3 {[%emt 0:00:02]} b3 {[%emt 0:00:01]} 28. c4 {[%emt 0:00:07]} Nd7 {[%emt 0:00:18]} 29. Nxc6 {[%emt 0:00:22]} Bf7 1-0

[Event "Hungarian Rapid-ch 2022"]
[Site "Ajka"]
[Date "2022.07.16"]
[Round "9.16"]
[White "Mihok-Juhasz, Barbara"]
[Black "Lizak, Peter"]
[Result "0-1"]
[ECO "B12"]
[WhiteElo "2221"]
[BlackElo "2400"]
[Annotator "ChessBase"]
[PlyCount "122"]
[EventDate "2022.07.15"]
[EventType "swiss"]
[EventCountry "HUN"]
[SourceTitle "playchess.com"]
[Source "ChessBase"]
[SourceQuality "1"]
[TimeControl "900+10"]

1. e4 {[%emt 0:00:13]} c6 {[%emt 0:00:11]} 2. d4 {[%emt 0:00:02]} d5 {[%emt 0:00:01]} 3. e5 {[%emt 0:00:01]} Bf5 {[%emt 0:00:02]} 4. h4 {[%emt 0:00:02]} h6 {[%emt 0:00:03]} 5. g4 {[%emt 0:00:02]} Bd7 {[%emt 0:00:02]} 6. Nc3 {[%emt 0:00:09]} h5 {[%emt 0:00:02]} 7. gxh5 {[%emt 0:00:33]} Bf5 {[%emt 0:00:19]} 8. Bd3 {[%emt 0:00:36]} Bxd3 {[%emt 0:00:08]} 9. Qxd3 {[%emt 0:00:02]} e6 {[%emt 0:00:04]} 10. Nf3 {[%emt 0:00:35]} Nh6 {[%emt 0:03:13]} 11. Bg5 {[%emt 0:00:20]} Qa5 {[%emt 0:00:06]} 12. O-O-O {[%emt 0:00:23]} Nf5 {[%emt 0:00:58]} 13. Kb1 {[%emt 0:00:09]} Na6 {[%emt 0:00:28]} 14. Ne2 {[%emt 0:01:19]} c5 {[%emt 0:02:58]} 15. dxc5 {[%emt 0:01:55]} Nxc5 {[%emt 0:00:09]} 16. Qd2 {[%emt 0:00:01]} Qxd2 {[%emt 0:00:07]} 17. Nxd2 {[%emt 0:00:07]} Nd7 {[%emt 0:01:24]} 18. Nf3 {[%emt 0:00:12]} Bc5 {[%emt 0:00:57]} 19. Ng3 {[%emt 0:00:02]} Ne7 {[%emt 0:00:45]} 20. Rd2 {[%emt 0:00:22]} Nc6 {[%emt 0:00:15]} 21. Re1 {[%emt 0:00:11]} Nb6 {[%emt 0:00:48]} 22. c3 {[%emt 0:00:55]} Nc4 {[%emt 0:00:06]} 23. Rde2 {[%emt 0:00:07]} a5 {[%emt 0:00:05]} 24. a4 {[%emt 0:02:02]} b5 {[%emt 0:01:03]} 25. axb5 {[%emt 0:00:03]} Na7 {[%emt 0:00:02]} 26. Nd2 {[%emt 0:00:41]} Nxd2+ {[%emt 0:00:43]} 27. Rxd2 {[%emt 0:00:15]} Nxb5 {[%emt 0:00:03]} 28. Be3 {[%emt 0:00:16]} Be7 {[%emt 0:00:05]} 29. Bg5 {[%emt 0:00:07]} a4 {[%emt 0:00:14]} 30. c4 {[%emt 0:00:27]} dxc4 {[%emt 0:00:12]} 31. Red1 {[%emt 0:00:00]} c3 {[%emt 0:00:29]} 32. Rd7 {[%emt 0:00:13]} f6 {[%emt 0:00:01]} 33. exf6 {[%emt 0:03:55]} gxf6 {[%emt 0:00:05]} 34. Rb7 {[%emt 0:00:01]} fxg5 {[%emt 0:02:27]} 35. Rxb5 {[%emt 0:00:02]} gxh4 {[%emt 0:00:06]} 36. Ne4 {[%emt 0:00:01]} cxb2 {[%emt 0:00:07]} 37. Kxb2 {[%emt 0:00:01]} a3+ {[%emt 0:00:09]} 38. Ka2 {[%emt 0:00:02]} h3 {[%emt 0:00:12]} 39. Rh1 {[%emt 0:00:34]} Rc8 {[%emt 0:00:58]} 40. Kb3 {[%emt 0:00:11]} Ra8 {[%emt 0:00:06]} 41. Ka2 Rc8 {[%emt 0:00:15]} 42. Kb3 {[%emt 0:00:46]} O-O {[%emt 0:00:10]} 43. Rxh3 {[%emt 0:00:11]} Rb8 {[%emt 0:00:01]} 44. Rg3+ {[%emt 0:00:11]} Kh8 {[%emt 0:00:08]} 45. Rxb8 {[%emt 0:00:22]} Rxb8+ {[%emt 0:00:00]} 46. Ka2 {[%emt 0:00:01]} Rb2+ {[%emt 0:00:09]} 47. Ka1 {[%emt 0:00:01]} Re2 {[%emt 0:00:05]} 48. Re3 {[%emt 0:00:01]} Rxe3 {[%emt 0:00:06]} 49. fxe3 {[%emt 0:00:01]} Kh7 {[%emt 0:00:04]} 50. Ng3 {[%emt 0:02:04]} Kh6 {[%emt 0:00:01]} 51. Ka2 {[%emt 0:00:06]} Kg5 {[%emt 0:00:02]} 52. Kb3 {[%emt 0:00:11]} Bf8 {[%emt 0:00:11]} 53. Ne2 {[%emt 0:00:37]} e5 {[%emt 0:00:07]} 54. Nc3 {[%emt 0:01:52]} Kxh5 {[%emt 0:00:05]} 55. Kc4 {[%emt 0:00:02]} Kg4 {[%emt 0:00:08]} 56. Kd5 {[%emt 0:00:06]} Kf3 {[%emt 0:00:13]} 57. e4 {[%emt 0:00:25]} Ke3 {[%emt 0:00:09]} 58. Na2 {[%emt 0:00:01]} Kd3 {[%emt 0:00:05]} 59. Kxe5 {[%emt 0:00:14]} Kc2 {[%emt 0:00:09]} 60. Kf6 {[%emt 0:00:30]} Kb2 {[%emt 0:00:05]} 61. Kf7 {[%emt 0:00:01]} Bc5 {[%emt 0:00:02]} 0-1